{"text_format":"1","workbook":"xlsx","n_sheets":4,"sheets":["دليل الحسابـــــــــــــات ","يومية التسويات يناير 2020","يومية التسويات فبراير 2020","كشف الحساب"],"not_rendered":{"charts":0,"images":0,"macros":1,"external_links":6,"defined_names":21,"comments":0,"pivot_tables":0},"unopened":[],"bounds":{"document_bytes":16777216,"sheet_cells":100000,"rows_first":2000,"rows_last":500,"rows_between":2000,"halvings":0,"cell_chars":16384,"cell_head_chars":4096},"cells_cut":0,"cells_raw":0,"read":"whole","date_system":"1900"}

{"sheet":"دليل الحسابـــــــــــــات ","index":0,"n_rows":122,"n_cols":11,"rows_kept":122,"cut":false,"hidden":false,"merged":[[1,0,1,10]]}
[]
["دليل الحسابـــــــــــــات"]
[]
["رقم مسلسل","رقـــــم الحساب"," إسم  الحســـــــــــاب","رقم المجموعة الفرعية","إســـم المجموعة الفرعية","رقم المجموعة الفرعية","إســـم المجموعة الفرعية","رقم المجموعة الرئيسية","اسم  المجموعة الرئيسية","القوائم"," الحساب الختامى"]
["No","Codes","Account","Subgroup number","Subgroup Name","Subgroup number","Subgroup Name","Main group number","Main group name","Lists","Final account"]
[1,1111,"أرض 1",111,"أراضي ومباني",11,"الأصول الثابته",1,"الأصـــــــــــــــول","الميزانية ","الميزانية "]
[2,1121,"أثاث مكاتب",112,"أثاث وتجهيزات",11,"الأصول الثابته",1,"الأصـــــــــــــــول","الميزانية ","الميزانية "]
[3,1122,"سجاجيد",112,"أثاث وتجهيزات",11,"الأصول الثابته",1,"الأصـــــــــــــــول","الميزانية ","الميزانية "]
[4,1123,"خزائن",112,"أثاث وتجهيزات",11,"الأصول الثابته",1,"الأصـــــــــــــــول","الميزانية ","الميزانية "]
[5,1124,"نجف وأبليكات",112,"أثاث وتجهيزات",11,"الأصول الثابته",1,"الأصـــــــــــــــول","الميزانية ","الميزانية "]
[6,1125,"أنتريهات",112,"أثاث وتجهيزات",11,"الأصول الثابته",1,"الأصـــــــــــــــول","الميزانية ","الميزانية "]
[7,1126,"ستائـــــــــــر",112,"أثاث وتجهيزات",11,"الأصول الثابته",1,"الأصـــــــــــــــول","الميزانية ","الميزانية "]
[8,1129,"تجهيزات مكاتب أخرى",112,"أثاث وتجهيزات",11,"الأصول الثابته",1,"الأصـــــــــــــــول","الميزانية ","الميزانية "]
[9,1131,"تكييفات ومراوح",113,"الات ومعدات",11,"الأصول الثابته",1,"الأصـــــــــــــــول","الميزانية ","الميزانية "]
[10,1132,"أجهزة موبايل",113,"الات ومعدات",11,"الأصول الثابته",1,"الأصـــــــــــــــول","الميزانية ","الميزانية "]
[11,1133,"ماكينات تصوير",113,"الات ومعدات",11,"الأصول الثابته",1,"الأصـــــــــــــــول","الميزانية ","الميزانية "]
[12,1134,"أجهزة كمبيوتر",113,"الات ومعدات",11,"الأصول الثابته",1,"الأصـــــــــــــــول","الميزانية ","الميزانية "]
[13,1135,"معدات كمبيوتر",113,"الات ومعدات",11,"الأصول الثابته",1,"الأصـــــــــــــــول","الميزانية ","الميزانية "]
[14,1136,"موقع الشركه",113,"الات ومعدات",11,"الأصول الثابته",1,"الأصـــــــــــــــول","الميزانية ","الميزانية "]
[15,1141,"سياره 1",114,"سيارات",11,"الأصول الثابته",1,"الأصـــــــــــــــول","الميزانية ","الميزانية "]
[16,1151,"إستثمار طويل الأجل 1",115,"استثمارات طويلة الاجل",11,"الأصول الثابته",1,"الأصـــــــــــــــول","الميزانية ","الميزانية "]
[17,1211,"خزينة الشركه - جنيه مصري",121,"الخزينة",12,"الاصول المتداولة",1,"الأصـــــــــــــــول","الميزانية ","الميزانية "]
[18,1212,"خزينة الشركه - دولار أمريكي",121,"الخزينة",12,"الاصول المتداولة",1,"الأصـــــــــــــــول","الميزانية ","الميزانية "]
[24,1235,"بنك مصر ( دولار)",123,"بنــــــــــــــوك",12,"الاصول المتداولة",1,"الأصـــــــــــــــول","الميزانية ","الميزانية "]
[25,1236,"بنك مصر ( ريال سعودي)",123,"بنــــــــــــــوك",12,"الاصول المتداولة",1,"الأصـــــــــــــــول","الميزانية ","الميزانية "]
[26,1237,"بنك مصر ( جنيه مصري )",123,"بنــــــــــــــوك",12,"الاصول المتداولة",1,"الأصـــــــــــــــول","الميزانية ","الميزانية "]
[28,1241,"وديعة بنك 1",124,"استثمارات قصيرة الاجل",12,"الاصول المتداولة",1,"الأصـــــــــــــــول","الميزانية ","الميزانية "]
[29,1311,"عملاء الشركه",131,"عمـــــــــــــــــــــلاء",13,"مدينون وحسابات قبض",1,"الأصـــــــــــــــول","الميزانية ","الميزانية "]
[30,1312,"عمــــــلاء وكالات",131,"عمـــــــــــــــــــــلاء",13,"مدينون وحسابات قبض",1,"الأصـــــــــــــــول","الميزانية ","الميزانية "]
[31,1313,"عمــــــلاء حجز كاش ",131,"عمـــــــــــــــــــــلاء",13,"مدينون وحسابات قبض",1,"الأصـــــــــــــــول","الميزانية ","الميزانية "]
[32,1314,"عملاء بيع خارجي Corprate",131,"عمـــــــــــــــــــــلاء",13,"مدينون وحسابات قبض",1,"الأصـــــــــــــــول","الميزانية ","الميزانية "]
[33,1321,"عهـد موظفين",132,"عهــــــــــــــد",13,"مدينون وحسابات قبض",1,"الأصـــــــــــــــول","الميزانية ","الميزانية "]
[34,1322,"عهــــد إداره",132,"عهــــــــــــــد",13,"مدينون وحسابات قبض",1,"الأصـــــــــــــــول","الميزانية ","الميزانية "]
[35,1323,"عهد وكالات",132,"عهــــــــــــــد",13,"مدينون وحسابات قبض",1,"الأصـــــــــــــــول","الميزانية ","الميزانية "]
[36,1331,"سلــــــف موظفين",133,"سلـــــف",13,"مدينون وحسابات قبض",1,"الأصـــــــــــــــول","الميزانية ","الميزانية "]
[37,1332,"سلــــــف إداره",133,"سلـــــف",13,"مدينون وحسابات قبض",1,"الأصـــــــــــــــول","الميزانية ","الميزانية "]
[38,1341,"تأمينات لدى الغير",134,"مدفوعات مقدمه",13,"مدينون وحسابات قبض",1,"الأصـــــــــــــــول","الميزانية ","الميزانية "]
[39,1351,"مصروفات مدفوعه مقدماً",135,"أرصده مدينه أخرى",13,"مدينون وحسابات قبض",1,"الأصـــــــــــــــول","الميزانية ","الميزانية "]
[40,1352,"إيرادات مستحقه",135,"أرصده مدينه أخرى",13,"مدينون وحسابات قبض",1,"الأصـــــــــــــــول","الميزانية ","الميزانية "]
[41,1353,"جاري شركاء مدين يوسف الدخيل",135,"أرصده مدينه أخرى",13,"مدينون وحسابات قبض",1,"الأصـــــــــــــــول","الميزانية ","الميزانية "]
[42,1354,"جاري شركاء مدين عادل نور",135,"أرصده مدينه أخرى",13,"مدينون وحسابات قبض",1,"الأصـــــــــــــــول","الميزانية ","الميزانية "]
[43,2111,"مســــــاهمة الشريك يوسف الدخيل",211,"رأس المال",21,"راس المال",2,"الخصوم وحقوق الملكية","الميزانية ","الميزانية "]
[44,2112,"مساهمة الشريك عادل نور",211,"رأس المال",21,"راس المال",2,"الخصوم وحقوق الملكية","الميزانية ","الميزانية "]
[45,2121,"أربـــاح وخسائر العام",212,"ارباح مرحلة",21,"راس المال",2,"الخصوم وحقوق الملكية","الميزانية ","الميزانية "]
[46,2122,"أرباح وخسائر سنوات سابقه",212,"ارباح مرحلة",21,"راس المال",2,"الخصوم وحقوق الملكية","الميزانية ","الميزانية "]
[47,2211,"إحتياطي عام 2.5%",221,"احتياطى عام",22,"احتياطيات",2,"الخصوم وحقوق الملكية","الميزانية ","الميزانية "]
[48,2212,"احتياطى شراء اصول ثابتة",221,"احتياطى عام",22,"احتياطيات",2,"الخصوم وحقوق الملكية","الميزانية ","الميزانية "]
[56,2411,"قرض طويل الأجل 1",241,"قروض طويلة الاجل",24,"التزامات طويلة الاجل",2,"الخصوم وحقوق الملكية","الميزانية ","الميزانية "]
[57,2421,"التزامات طويلة الأجل 1",242,"التزامات طويلة الاجل اخرى",24,"التزامات طويلة الاجل",2,"الخصوم وحقوق الملكية","الميزانية ","الميزانية "]
[58,2511,"موردين فنادق",251,"المورديــــــــــــن",25,"التزامات قصيرة الاجل",2,"الخصوم وحقوق الملكية","الميزانية ","الميزانية "]
[59,2512,"موردين شركات سياحه",251,"المورديــــــــــــن",25,"التزامات قصيرة الاجل",2,"الخصوم وحقوق الملكية","الميزانية ","الميزانية "]
[60,2513,"موردين شركات طيران",251,"المورديــــــــــــن",25,"التزامات قصيرة الاجل",2,"الخصوم وحقوق الملكية","الميزانية ","الميزانية "]
[61,2514,"موردين شركات نقل سياحي",251,"المورديــــــــــــن",25,"التزامات قصيرة الاجل",2,"الخصوم وحقوق الملكية","الميزانية ","الميزانية "]
[62,2515,"موردين تأشيرات",251,"المورديــــــــــــن",25,"التزامات قصيرة الاجل",2,"الخصوم وحقوق الملكية","الميزانية ","الميزانية "]
[63,2516,"موردين كردت كارت الشركه",251,"المورديــــــــــــن",25,"التزامات قصيرة الاجل",2,"الخصوم وحقوق الملكية","الميزانية ","الميزانية "]
[64,2517,"موردين تشغيل",251,"المورديــــــــــــن",25,"التزامات قصيرة الاجل",2,"الخصوم وحقوق الملكية","الميزانية ","الميزانية "]
[65,2521,"شيكات (دفع ) تحت التحصيل ",252,"اوراق دفع",25,"التزامات قصيرة الاجل",2,"الخصوم وحقوق الملكية","الميزانية ","الميزانية "]
[66,2611,"تأمينات مستحقه",261,"مصروفات مستحقه دائنه",26,"ارصدة دائنة اخرى",2,"الخصوم وحقوق الملكية","الميزانية ","الميزانية "]
[67,2612,"ضــــــــرائب دائنه",261,"مصروفات مستحقه دائنه",26,"ارصدة دائنة اخرى",2,"الخصوم وحقوق الملكية","الميزانية ","الميزانية "]
[68,2621,"ايرادات مستحقة دائنه",262,"ايرادات مستحقة دائنه",26,"ارصدة دائنة اخرى",2,"الخصوم وحقوق الملكية","الميزانية ","الميزانية "]
[69,2631,"جاري شركــــــــاء دائن  يوسف الدخيل",263,"جاري شركــــــــاء ",26,"ارصدة دائنة اخرى",2,"الخصوم وحقوق الملكية","الميزانية ","الميزانية "]
[70,2632,"جاري شركــــــــاء دائن  عادل نور",263,"جاري شركــــــــاء ",26,"ارصدة دائنة اخرى",2,"الخصوم وحقوق الملكية","الميزانية ","الميزانية "]
[71,2641,"مرتبات مستحقه",264,"مستحقات أخرى",26,"ارصدة دائنة اخرى",2,"الخصوم وحقوق الملكية","الميزانية ","الميزانية "]
[72,2642,"إيجـــــــــــارات مستحقه",264,"مستحقات أخرى",26,"ارصدة دائنة اخرى",2,"الخصوم وحقوق الملكية","الميزانية ","الميزانية "]
[73,2643,"مصاريف مراجعه مستحقه",264,"مستحقات أخرى",26,"ارصدة دائنة اخرى",2,"الخصوم وحقوق الملكية","الميزانية ","الميزانية "]
[74,2644,"مصــــــاريف إدارية مستحقه",264,"مستحقات أخرى",26,"ارصدة دائنة اخرى",2,"الخصوم وحقوق الملكية","الميزانية ","الميزانية "]
[75,2645,"فواتير تليفونات مستحقه",264,"مستحقات أخرى",26,"ارصدة دائنة اخرى",2,"الخصوم وحقوق الملكية","الميزانية ","الميزانية "]
[76,2646,"فواتير موبايلات مستحقه",264,"مستحقات أخرى",26,"ارصدة دائنة اخرى",2,"الخصوم وحقوق الملكية","الميزانية ","الميزانية "]
[77,2647,"فواتير موبايلات مستحقه",264,"مستحقات أخرى",26,"ارصدة دائنة اخرى",2,"الخصوم وحقوق الملكية","الميزانية ","الميزانية "]
[78,3111,"مصاريف مرتبات ومكافآت  ",311,"مصاريف مرتبات ومكافآت",31,"مصـاريف تشغيل","3","المصروفات","قائمة الدخل ","المتاجرة"]
[79,3121,"مصاريف تليفونات أرضي",312,"مصاريف إتصــــــالات",31,"مصـاريف تشغيل","3","المصروفات","قائمة الدخل ","المتاجرة"]
[80,3122,"مصاريف مكالمات موبايلات",312,"مصاريف إتصــــــالات",31,"مصـاريف تشغيل","3","المصروفات","قائمة الدخل ","المتاجرة"]
[81,3123,"مصاريف خطوط شحن ",312,"مصاريف إتصــــــالات",31,"مصـاريف تشغيل","3","المصروفات","قائمة الدخل ","الارباح والخسائر "]
[83,3125,"مصاريف كروت شحن مصري",312,"مصاريف إتصــــــالات",31,"مصـاريف تشغيل",3,"المصروفات","قائمة الدخل ","الارباح والخسائر "]
[85,3127,"مصاريف تركيبات تليفونات",312,"مصاريف إتصــــــالات",31,"مصـاريف تشغيل","3","المصروفات","قائمة الدخل ","الارباح والخسائر "]
[86,3128,"مصاريف كمبيوتر وشبكات ",312,"مصاريف إتصــــــالات",31,"مصـاريف تشغيل","3","المصروفات","قائمة الدخل ","الارباح والخسائر "]
[87,3131,"مصاريف حجز فنادق عملاء مدفوعه",313,"مصاريف خدمات عملاء مدفوعه",31,"مصـاريف تشغيل","3","المصروفات","قائمة الدخل ","الارباح والخسائر "]
[88,3132,"مصاريف حجز طيران عملاء مدفوعه",313,"مصاريف خدمات عملاء مدفوعه",31,"مصـاريف تشغيل","3","المصروفات","قائمة الدخل ","الارباح والخسائر "]
[107,3161,"مصاريف بنكيه",316,"مصاريف البنوك",31,"مصـاريف تشغيل",3,"المصروفات","قائمة الدخل ","الارباح والخسائر "]
[108,3162,"مصاريف عمولات بنكيه",316,"مصاريف البنوك",31,"مصـاريف تشغيل",3,"المصروفات","قائمة الدخل ","الارباح والخسائر "]
[109,3171,"مصاريف عمولات تسويق وكالات",317,"مصاريف عمولات تسويق",31,"مصـاريف تشغيل",3,"المصروفات","قائمة الدخل ","الارباح والخسائر "]
[110,3172,"مصاريف عمولات تسويق خارجي",317,"مصاريف عمولات تسويق",31,"مصـاريف تشغيل",3,"المصروفات","قائمة الدخل ","الارباح والخسائر "]
[111,3181,"مصاريف بريد",318,"مصاريف تشغيل أخرى",31,"مصـاريف تشغيل",3,"المصروفات","قائمة الدخل ","الارباح والخسائر "]
[112,3182,"مصاريف مطبوعات ",318,"مصاريف تشغيل أخرى",31,"مصـاريف تشغيل",3,"المصروفات","قائمة الدخل ","الارباح والخسائر "]
[113,3183,"مصاريف داتا",318,"مصاريف تشغيل أخرى",31,"مصـاريف تشغيل",3,"المصروفات","قائمة الدخل ","الارباح والخسائر "]
[114,3184,"مصاريف رحلات عمل",318,"مصاريف تشغيل أخرى",31,"مصـاريف تشغيل",3,"المصروفات","قائمة الدخل ","الارباح والخسائر "]
[115,3185,"مصاريف خصم كروت",318,"مصاريف تشغيل أخرى",31,"مصـاريف تشغيل",3,"المصروفات","قائمة الدخل ","الارباح والخسائر "]
[116,3191,"مصاريف دعايه وإعلان وترويج",319,"مصاريف دعايه وإعلان وترويج وإستقبالات",31,"مصـاريف تشغيل",3,"المصروفات","قائمة الدخل ","الارباح والخسائر "]
[117,3192,"مصاريف علاقات عامه وإستقبال",319,"مصاريف دعايه وإعلان وترويج وإستقبالات",31,"مصـاريف تشغيل",3,"المصروفات","قائمة الدخل ","الارباح والخسائر "]
[118,3211,"مرتبات ومكافأت عموميه",321,"مرتبات ومكافأت عموميه",32,"مصاريف عموميه وإداريه",3,"المصروفات","قائمة الدخل ","الارباح والخسائر "]
[119,3221,"حصة الشركه في التأمينات عموميه",322,"حصة الشركه في التأمينات عموميه",32,"مصاريف عموميه وإداريه",3,"المصروفات","قائمة الدخل ","الارباح والخسائر "]
[120,3231,"مصاريف مياه عموميه",323,"مياه وكهرباء وغاز عموميه",32,"مصاريف عموميه وإداريه",3,"المصروفات","قائمة الدخل ","الارباح والخسائر "]
[121,3232,"مصاريف كهرباء عموميه",323,"مياه وكهرباء وغاز عموميه",32,"مصاريف عموميه وإداريه",3,"المصروفات","قائمة الدخل ","الارباح والخسائر "]
[122,3233,"مصاريف غاز عموميه",323,"مياه وكهرباء وغاز عموميه",32,"مصاريف عموميه وإداريه",3,"المصروفات","قائمة الدخل ","الارباح والخسائر "]
[123,3241,"مصاريف إيجار",324,"مصـــــاريف إيجار",32,"مصاريف عموميه وإداريه",3,"المصروفات","قائمة الدخل ","الارباح والخسائر "]
[124,3251,"مصاريف بوفيه",325,"مصاريف بوفيه وترفيه",32,"مصاريف عموميه وإداريه",3,"المصروفات","قائمة الدخل ","الارباح والخسائر "]
[125,3252,"مصاريف ترفيه ",325,"مصاريف بوفيه وترفيه",32,"مصاريف عموميه وإداريه",3,"المصروفات","قائمة الدخل ","الارباح والخسائر "]
[126,3261,"مصاريف نقل مستلزمات الشركه",326,"مصاريف نقل وإنتقالات",32,"مصاريف عموميه وإداريه",3,"المصروفات","قائمة الدخل ","الارباح والخسائر "]
[127,3262,"مصاريف إنتقالات موظفين عموميه",326,"مصاريف نقل وإنتقالات",32,"مصاريف عموميه وإداريه",3,"المصروفات","قائمة الدخل ","الارباح والخسائر "]
[128,32701,"مواد تعبئة وتغليف",327,"مصروفات عموميه وإداريه أخرى",32,"مصاريف عموميه وإداريه",3,"المصروفات","قائمة الدخل ","الارباح والخسائر "]
[129,32702,"خصم مسموح به",327,"مصروفات عموميه وإداريه أخرى",32,"مصاريف عموميه وإداريه",3,"المصروفات","قائمة الدخل ","الارباح والخسائر "]
[130,32703,"مصاريف مكتب أخرى عموميه",327,"مصروفات عموميه وإداريه أخرى",32,"مصاريف عموميه وإداريه",3,"المصروفات","قائمة الدخل ","الارباح والخسائر "]
[131,32704,"مصاريف أدوات كتابيه عموميه",327,"مصروفات عموميه وإداريه أخرى",32,"مصاريف عموميه وإداريه",3,"المصروفات","قائمة الدخل ","الارباح والخسائر "]
[132,32705,"مصاريف صيانه عموميه",327,"مصروفات عموميه وإداريه أخرى",32,"مصاريف عموميه وإداريه",3,"المصروفات","قائمة الدخل ","الارباح والخسائر "]
[133,32706,"إكراميات عموميه",327,"مصروفات عموميه وإداريه أخرى",32,"مصاريف عموميه وإداريه",3,"المصروفات","قائمة الدخل ","الارباح والخسائر "]
[134,32707,"مصاريف مراجعه عموميه",327,"مصروفات عموميه وإداريه أخرى",32,"مصاريف عموميه وإداريه",3,"المصروفات","قائمة الدخل ","الارباح والخسائر "]
[135,32708,"مصاريف فرق تقويم عمله",327,"مصروفات عموميه وإداريه أخرى",32,"مصاريف عموميه وإداريه",3,"المصروفات","قائمة الدخل ","الارباح والخسائر "]
[136,32709,"مصاريف نظافه",327,"مصروفات عموميه وإداريه أخرى",32,"مصاريف عموميه وإداريه",3,"المصروفات","قائمة الدخل ","الارباح والخسائر "]
[137,32710,"مصاريف غرامات عموميه",327,"مصروفات عموميه وإداريه أخرى",32,"مصاريف عموميه وإداريه",3,"المصروفات","قائمة الدخل ","الارباح والخسائر "]
[138,32711,"مصاريف مكافآت لغير العاملين عن خدمات مؤداه",327,"مصروفات عموميه وإداريه أخرى",32,"مصاريف عموميه وإداريه",3,"المصروفات","قائمة الدخل ","الارباح والخسائر "]
[139,32712,"مصاريف سنوات سابقه",327,"مصروفات عموميه وإداريه أخرى",32,"مصاريف عموميه وإداريه",3,"المصروفات","قائمة الدخل ","الارباح والخسائر "]
[140,32713,"مصاريف رسوم إداريه",327,"مصروفات عموميه وإداريه أخرى",32,"مصاريف عموميه وإداريه",3,"المصروفات","قائمة الدخل ","الارباح والخسائر "]
[141,32714,"رسوم وضرائب",327,"مصروفات عموميه وإداريه أخرى",32,"مصاريف عموميه وإداريه",3,"المصروفات","قائمة الدخل ","الارباح والخسائر "]
[145,4211,"إيرادات حجز فنادق عملاء مدفوعه",421,"إيرادات خدمات عملاء فرع القاهره",42,"إيرادات خدمات عملاء",4,"إيــــرادات","قائمة الدخل ","الارباح والخسائر "]
[146,4212,"إيرادات حجز طيران عملاء مدفوعه",421,"إيرادات خدمات عملاء كارت فرع إسكندريه",42,"إيرادات خدمات عملاء",4,"إيــــرادات","قائمة الدخل ","الارباح والخسائر "]
[169,4331,"إيرادات أخرى فرق تقويم عمله",433,"إيرادات أخرى مختلفه",43,"إيرادات أخرى",4,"إيــــرادات","قائمة الدخل ","الارباح والخسائر "]
[170,4332,"ايرادت الاستثمار",433,"إيرادات أخرى مختلفه",43,"إيرادات أخرى",4,"إيــــرادات","قائمة الدخل ","الارباح والخسائر "]
[171,4333,"خصم مكتسب",433,"إيرادات أخرى مختلفه",43,"إيرادات أخرى",4,"إيــــرادات","قائمة الدخل ","الارباح والخسائر "]
[172,4334,"ارباح راسمالية",433,"إيرادات أخرى مختلفه",43,"إيرادات أخرى",4,"إيــــرادات","قائمة الدخل ","الارباح والخسائر "]
[173,4335,"ايجارات دائنة ",433,"إيرادات أخرى مختلفه",43,"إيرادات أخرى",4,"إيــــرادات","قائمة الدخل ","الارباح والخسائر "]
[174,4336,"ايرادات اخرى متنوعة",433,"إيرادات أخرى مختلفه",43,"إيرادات أخرى",4,"إيــــرادات","قائمة الدخل ","الارباح والخسائر "]
[175,4337,"إيرادات سنوات سابقه",433,"إيرادات أخرى مختلفه",43,"إيرادات أخرى",4,"إيــــرادات","قائمة الدخل ","الارباح والخسائر "]

{"sheet":"يومية التسويات يناير 2020","index":1,"n_rows":74,"n_cols":10,"rows_kept":74,"cut":false,"hidden":false,"merged":[[43,4,43,5],[43,8,43,9],[47,8,47,9],[47,4,47,5],[70,4,70,5],[70,8,70,9],[64,4,64,5],[64,8,64,9],[67,4,67,5],[67,8,67,9],[59,4,59,5],[59,8,59,9],[1,4,1,5],[21,4,21,5],[29,4,29,5],[29,8,29,9],[26,4,26,5],[2,1,2,5],[39,4,39,5],[39,8,39,9],[26,8,26,9],[34,4,34,5],[34,8,34,9],[21,8,21,9],[73,4,73,5],[73,8,73,9],[50,4,50,5],[50,8,50,9],[53,4,53,5],[53,8,53,9]]}
[]
[]
[null,"يومية التسويات عن شهر    ",null,null,null,null,"  يناير 2020"]
[]
[null,"رقم القيد","التاريخ","عنوان القيد ","رقـــــم الحساب"," إسم  الحســـــــــــاب","مدين","دائن","بيــــــــان","ملاحظـــــــــــات"]
[null,null,"Date",null,"Codes","Account","Debit.","Credit.","Explanation","Notes"]
[null,1,"2020-01-01","قيمة مصاريف الخزينه عن شهر يناير 2020",{"$f":"IF(F7=\"\",\"\",INDEX('دليل الحسابـــــــــــــات '!$B:$B,MATCH($F7,'دليل الحسابـــــــــــــات '!$C:$C,0)))","v":32705},"مصاريف صيانه عموميه",{"$f":"400+500+1000+20","v":1920}]
[null,1,"2020-01-01","قيمة مصاريف الخزينه عن شهر يناير 2020",{"$f":"IF(F8=\"\",\"\",INDEX('دليل الحسابـــــــــــــات '!$B:$B,MATCH($F8,'دليل الحسابـــــــــــــات '!$C:$C,0)))","v":32703},"مصاريف مكتب أخرى عموميه",{"$f":"135+40+110","v":285}]
[null,1,"2020-01-01","قيمة مصاريف الخزينه عن شهر يناير 2020",{"$f":"IF(F9=\"\",\"\",INDEX('دليل الحسابـــــــــــــات '!$B:$B,MATCH($F9,'دليل الحسابـــــــــــــات '!$C:$C,0)))","v":32709},"مصاريف نظافه",{"$f":"106+50+97+50","v":303}]
[null,1,"2020-01-01","قيمة مصاريف الخزينه عن شهر يناير 2020",{"$f":"IF(F10=\"\",\"\",INDEX('دليل الحسابـــــــــــــات '!$B:$B,MATCH($F10,'دليل الحسابـــــــــــــات '!$C:$C,0)))","v":3251},"مصاريف بوفيه",{"$f":"40+10+32+67+49+51+29+48+87","v":413}]
[null,1,"2020-01-01","قيمة مصاريف الخزينه عن شهر يناير 2020",{"$f":"IF(F11=\"\",\"\",INDEX('دليل الحسابـــــــــــــات '!$B:$B,MATCH($F11,'دليل الحسابـــــــــــــات '!$C:$C,0)))","v":3128},"مصاريف كمبيوتر وشبكات ",{"$f":"125+124+124+124+124+124+124+125","v":994}]
[null,1,"2020-01-01","قيمة مصاريف الخزينه عن شهر يناير 2020",{"$f":"IF(F12=\"\",\"\",INDEX('دليل الحسابـــــــــــــات '!$B:$B,MATCH($F12,'دليل الحسابـــــــــــــات '!$C:$C,0)))","v":32706},"إكراميات عموميه",250,null,"قيمة الإكراميه الشهريه لموظفي أمن العماره"]
[null,1,"2020-01-01","قيمة مصاريف الخزينه عن شهر يناير 2020",{"$f":"IF(F13=\"\",\"\",INDEX('دليل الحسابـــــــــــــات '!$B:$B,MATCH($F13,'دليل الحسابـــــــــــــات '!$C:$C,0)))","v":2641},"مرتبات مستحقه",69839]
[null,1,"2020-01-01","قيمة مصاريف الخزينه عن شهر يناير 2020",{"$f":"IF(F14=\"\",\"\",INDEX('دليل الحسابـــــــــــــات '!$B:$B,MATCH($F14,'دليل الحسابـــــــــــــات '!$C:$C,0)))","v":3182},"مصاريف مطبوعات ",1800,null,"قيمة مطبوعات مستندات الشركه"]
[null,1,"2020-01-01","قيمة مصاريف الخزينه عن شهر يناير 2020",{"$f":"IF(F15=\"\",\"\",INDEX('دليل الحسابـــــــــــــات '!$B:$B,MATCH($F15,'دليل الحسابـــــــــــــات '!$C:$C,0)))","v":1331},"سلــــــف موظفين",{"$f":"200+700+200+500","v":1600},null,"نذير إسحاق700 +900سلفة جانيت أحمد"]
[null,1,"2020-01-01","قيمة مصاريف الخزينه عن شهر يناير 2020",{"$f":"IF(F16=\"\",\"\",INDEX('دليل الحسابـــــــــــــات '!$B:$B,MATCH($F16,'دليل الحسابـــــــــــــات '!$C:$C,0)))","v":3232},"مصاريف كهرباء عموميه",210,null,"فاتورة كهرباء شهر يناير ( ديسمبر)"]
[null,1,"2020-01-01","قيمة مصاريف الخزينه عن شهر يناير 2020",{"$f":"IF(F17=\"\",\"\",INDEX('دليل الحسابـــــــــــــات '!$B:$B,MATCH($F17,'دليل الحسابـــــــــــــات '!$C:$C,0)))","v":3262},"مصاريف إنتقالات موظفين عموميه",25,null,"مصاريف إنتقال من مول الكمبيوتر للشركه"]
[null,1,"2020-01-01","قيمة مصاريف الخزينه عن شهر يناير 2020",{"$f":"IF(F18=\"\",\"\",INDEX('دليل الحسابـــــــــــــات '!$B:$B,MATCH($F18,'دليل الحسابـــــــــــــات '!$C:$C,0)))","v":32704},"مصاريف أدوات كتابيه عموميه",140,null,"شراء 2روزمة ورق تصوير"]
[null,1,"2020-01-01","قيمة مصاريف الخزينه عن شهر يناير 2020",{"$f":"IF(F19=\"\",\"\",INDEX('دليل الحسابـــــــــــــات '!$B:$B,MATCH($F19,'دليل الحسابـــــــــــــات '!$C:$C,0)))","v":3241},"مصاريف إيجار",8750,null,"إيجار الشركه عن شهر يناير 2020"]
[null,1,"2020-01-01","قيمة مصاريف الخزينه عن شهر يناير 2020",{"$f":"IF(F20=\"\",\"\",INDEX('دليل الحسابـــــــــــــات '!$B:$B,MATCH($F20,'دليل الحسابـــــــــــــات '!$C:$C,0)))","v":32713},"مصاريف رسوم إداريه",200,null,"إشتراك الغزفه التجاريه 2020"]
[null,1,"2020-01-01","قيمة مصاريف الخزينه عن شهر يناير 2020",{"$f":"IF(F21=\"\",\"\",INDEX('دليل الحسابـــــــــــــات '!$B:$B,MATCH($F21,'دليل الحسابـــــــــــــات '!$C:$C,0)))","v":1211},"خزينة الشركه - جنيه مصري",null,86729]
[null,null,null,null,"الإجمــــــــــــــــــالي",null,{"$f":"SUM(G7:G21)","v":86729},{"$f":"SUM(H7:H21)","v":86729}]
[null,2,"2020-01-31","تسوية سداد مستحقات أحمد الرويس وأمينه خالد من الحساب الشخصي ليوسف الدخيل",{"$f":"IF(F23=\"\",\"\",INDEX('دليل الحسابـــــــــــــات '!$B:$B,MATCH($F23,'دليل الحسابـــــــــــــات '!$C:$C,0)))","v":2641},"مرتبات مستحقه",10000]
[null,2,"2020-01-31","تسوية سداد مستحقات أحمد الرويس وأمينه خالد من الحساب الشخصي ليوسف الدخيل",{"$f":"IF(F24=\"\",\"\",INDEX('دليل الحسابـــــــــــــات '!$B:$B,MATCH($F24,'دليل الحسابـــــــــــــات '!$C:$C,0)))","v":2641},"مرتبات مستحقه",1000]
[null,2,"2020-01-31","تسوية سداد مستحقات أحمد الرويس وأمينه خالد من الحساب الشخصي ليوسف الدخيل",{"$f":"IF(F25=\"\",\"\",INDEX('دليل الحسابـــــــــــــات '!$B:$B,MATCH($F25,'دليل الحسابـــــــــــــات '!$C:$C,0)))","v":2641},"مرتبات مستحقه",750]
[null,2,"2020-01-31","تسوية سداد مستحقات أحمد الرويس وأمينه خالد من الحساب الشخصي ليوسف الدخيل",{"$f":"IF(F26=\"\",\"\",INDEX('دليل الحسابـــــــــــــات '!$B:$B,MATCH($F26,'دليل الحسابـــــــــــــات '!$C:$C,0)))","v":2631},"جاري شركــــــــاء دائن  يوسف الدخيل",null,11750]
[null,null,null,null,"الإجمــــــــــــــــــالي",null,{"$f":"SUM(G23:G26)","v":11750},{"$f":"SUM(H23:H26)","v":11750}]
[null,3,"2020-01-03","إيراد حجز العميل 1 في فندق رمادا ميلان فايل 1",{"$f":"IF(F28=\"\",\"\",INDEX('دليل الحسابـــــــــــــات '!$B:$B,MATCH($F28,'دليل الحسابـــــــــــــات '!$C:$C,0)))","v":1311},"عملاء الشركه",{"$f":"2856.13*16","v":45698.080000000002},null,null,2856.13]
[null,3,"2020-01-03","إيراد حجز العميل 1 في فندق رمادا ميلان فايل 1",{"$f":"IF(F29=\"\",\"\",INDEX('دليل الحسابـــــــــــــات '!$B:$B,MATCH($F29,'دليل الحسابـــــــــــــات '!$C:$C,0)))","v":4211},"إيرادات حجز فنادق عملاء مدفوعه",null,{"$f":"2856.13*16","v":45698.080000000002},null,2856.13]
[null,null,null,null,"الإجمــــــــــــــــــالي",null,{"$f":"SUM(G28:G29)","v":45698.080000000002},{"$f":"SUM(H28:H29)","v":45698.080000000002}]
[null,4,"2020-01-03","مصروف حجز العميل 1 في فندق رمادا ميلان فايل 1",{"$f":"IF(F31=\"\",\"\",INDEX('دليل الحسابـــــــــــــات '!$B:$B,MATCH($F31,'دليل الحسابـــــــــــــات '!$C:$C,0)))","v":3131},"مصاريف حجز فنادق عملاء مدفوعه",{"$f":"2655*16","v":42480},null,null,2655]
[null,4,"2020-01-03","مصروف حجز العميل 1 في فندق رمادا ميلان فايل 1",{"$f":"IF(F32=\"\",\"\",INDEX('دليل الحسابـــــــــــــات '!$B:$B,MATCH($F32,'دليل الحسابـــــــــــــات '!$C:$C,0)))","v":3132},"مصاريف حجز طيران عملاء مدفوعه",{"$f":"117.2*16","v":1875.2},null,null,117.2]
[null,4,"2020-01-03","مصروف حجز العميل 1 في فندق رمادا ميلان فايل 1",{"$f":"IF(F33=\"\",\"\",INDEX('دليل الحسابـــــــــــــات '!$B:$B,MATCH($F33,'دليل الحسابـــــــــــــات '!$C:$C,0)))","v":2512},"موردين شركات سياحه",null,{"$f":"2655*16","v":42480},null,2655]
[null,4,"2020-01-03","مصروف حجز العميل 1 في فندق رمادا ميلان فايل 1",{"$f":"IF(F34=\"\",\"\",INDEX('دليل الحسابـــــــــــــات '!$B:$B,MATCH($F34,'دليل الحسابـــــــــــــات '!$C:$C,0)))","v":2631},"جاري شركــــــــاء دائن  يوسف الدخيل",null,{"$f":"117.2*16","v":1875.2},null,117.2]
[null,null,null,null,"الإجمــــــــــــــــــالي",null,{"$f":"SUM(G31:G34)","v":44355.199999999997},{"$f":"SUM(H31:H34)","v":44355.199999999997}]
[null,5,"2020-01-06","إيراد حجز العميل 2 في فندق راديسون بلو الكويت فايل 2",{"$f":"IF(F36=\"\",\"\",INDEX('دليل الحسابـــــــــــــات '!$B:$B,MATCH($F36,'دليل الحسابـــــــــــــات '!$C:$C,0)))","v":1235},"بنك مصر ( دولار)",{"$f":"251.16*16","v":4018.56},null,null,"257/251.16"]
[null,5,"2020-01-06","إيراد حجز العميل 2 في فندق راديسون بلو الكويت فايل 2",{"$f":"IF(F37=\"\",\"\",INDEX('دليل الحسابـــــــــــــات '!$B:$B,MATCH($F37,'دليل الحسابـــــــــــــات '!$C:$C,0)))","v":1311},"عملاء الشركه",null,{"$f":"251.16*16","v":4018.56},null,"257/251.16"]
[null,5,"2020-01-06","إيراد حجز العميل 2 في فندق راديسون بلو الكويت فايل 2",{"$f":"IF(F38=\"\",\"\",INDEX('دليل الحسابـــــــــــــات '!$B:$B,MATCH($F38,'دليل الحسابـــــــــــــات '!$C:$C,0)))","v":1311},"عملاء الشركه",{"$f":"251.16*16","v":4018.56},null,null,"257/251.16"]
[null,5,"2020-01-06","إيراد حجز العميل 2 في فندق راديسون بلو الكويت فايل 2",{"$f":"IF(F39=\"\",\"\",INDEX('دليل الحسابـــــــــــــات '!$B:$B,MATCH($F39,'دليل الحسابـــــــــــــات '!$C:$C,0)))","v":4211},"إيرادات حجز فنادق عملاء مدفوعه",null,{"$f":"251.16*16","v":4018.56},null,"257/251.16"]
[null,null,null,null,"الإجمــــــــــــــــــالي",null,{"$f":"SUM(G36:G39)","v":8037.12},{"$f":"SUM(H36:H39)","v":8037.12}]
[null,6,"2020-01-09","سداد جزء من تحت حساب مديونية شركة المسافر",{"$f":"IF(F41=\"\",\"\",INDEX('دليل الحسابـــــــــــــات '!$B:$B,MATCH($F41,'دليل الحسابـــــــــــــات '!$C:$C,0)))","v":2512},"موردين شركات سياحه",{"$f":"2000*16","v":32000},null,"شركة المسافر",2000]
[null,6,"2020-01-09","سداد جزء من تحت حساب مديونية شركة المسافر",{"$f":"IF(F42=\"\",\"\",INDEX('دليل الحسابـــــــــــــات '!$B:$B,MATCH($F42,'دليل الحسابـــــــــــــات '!$C:$C,0)))","v":2512},"موردين شركات سياحه",{"$f":"2340*16","v":37440},null,"شركة المسافر",2340]
[null,6,"2020-01-09","سداد جزء من تحت حساب مديونية شركة المسافر",{"$f":"IF(F43=\"\",\"\",INDEX('دليل الحسابـــــــــــــات '!$B:$B,MATCH($F43,'دليل الحسابـــــــــــــات '!$C:$C,0)))","v":2632},"جاري شركــــــــاء دائن  عادل نور",null,69440,"شركة المسافر",4340]
[null,null,null,null,"الإجمــــــــــــــــــالي",null,{"$f":"SUM(G41:G43)","v":69440},{"$f":"SUM(H41:H43)","v":69440}]
[null,7,"2020-01-06","قيمة شحن مكالمات خلال شهر يناير 2020",{"$f":"IF(F45=\"\",\"\",INDEX('دليل الحسابـــــــــــــات '!$B:$B,MATCH($F45,'دليل الحسابـــــــــــــات '!$C:$C,0)))","v":3122},"مصاريف مكالمات موبايلات",{"$f":"900*4.25","v":3825}]
[null,7,"2020-01-06","قيمة شحن مكالمات خلال شهر يناير 2020",{"$f":"IF(F46=\"\",\"\",INDEX('دليل الحسابـــــــــــــات '!$B:$B,MATCH($F46,'دليل الحسابـــــــــــــات '!$C:$C,0)))","v":3128},"مصاريف كمبيوتر وشبكات ",{"$f":"200*16","v":3200}]
[null,7,"2020-01-06","قيمة شحن مكالمات خلال شهر يناير 2020",{"$f":"IF(F47=\"\",\"\",INDEX('دليل الحسابـــــــــــــات '!$B:$B,MATCH($F47,'دليل الحسابـــــــــــــات '!$C:$C,0)))","v":2517},"موردين تشغيل",null,{"$f":"7025","v":7025}]
[null,null,null,null,"الإجمــــــــــــــــــالي",null,{"$f":"SUM(G45:G47)","v":7025},{"$f":"SUM(H45:H47)","v":7025}]
[null,8,"2020-01-15","سداد دفعه من حساب شحن مكالمات للمورد",{"$f":"IF(F49=\"\",\"\",INDEX('دليل الحسابـــــــــــــات '!$B:$B,MATCH($F49,'دليل الحسابـــــــــــــات '!$C:$C,0)))","v":2517},"موردين تشغيل",{"$f":"900*16","v":14400}]
[null,8,"2020-01-15","سداد دفعه من حساب شحن مكالمات للمورد",{"$f":"IF(F50=\"\",\"\",INDEX('دليل الحسابـــــــــــــات '!$B:$B,MATCH($F50,'دليل الحسابـــــــــــــات '!$C:$C,0)))","v":2632},"جاري شركــــــــاء دائن  عادل نور",null,{"$f":"900*16","v":14400}]
[null,null,null,null,"الإجمــــــــــــــــــالي",null,{"$f":"SUM(G49:G50)","v":14400},{"$f":"SUM(H49:H50)","v":14400}]
[null,9,"2020-01-22","قيمة شحن مكالمات خلال شهر يناير 2020",{"$f":"IF(F52=\"\",\"\",INDEX('دليل الحسابـــــــــــــات '!$B:$B,MATCH($F52,'دليل الحسابـــــــــــــات '!$C:$C,0)))","v":2645},"فواتير تليفونات مستحقه",{"$f":"2400*4.25","v":10200}]
[null,9,"2020-01-22","قيمة شحن مكالمات خلال شهر يناير 2020",{"$f":"IF(F53=\"\",\"\",INDEX('دليل الحسابـــــــــــــات '!$B:$B,MATCH($F53,'دليل الحسابـــــــــــــات '!$C:$C,0)))","v":2632},"جاري شركــــــــاء دائن  عادل نور",null,{"$f":"2400*4.25","v":10200}]
[null,null,null,null,"الإجمــــــــــــــــــالي",null,{"$f":"SUM(G52:G53)","v":10200},{"$f":"SUM(H52:H53)","v":10200}]
[null,10,"2020-01-31","تسوية مرتبات الشركه عن شهر يناير 2020",{"$f":"IF(F55=\"\",\"\",INDEX('دليل الحسابـــــــــــــات '!$B:$B,MATCH($F55,'دليل الحسابـــــــــــــات '!$C:$C,0)))","v":3111},"مصاريف مرتبات ومكافآت  ",124865]
[null,10,"2020-01-31","تسوية مرتبات الشركه عن شهر يناير 2020",{"$f":"IF(F56=\"\",\"\",INDEX('دليل الحسابـــــــــــــات '!$B:$B,MATCH($F56,'دليل الحسابـــــــــــــات '!$C:$C,0)))","v":2641},"مرتبات مستحقه",null,114662.92]
[null,10,"2020-01-31","تسوية مرتبات الشركه عن شهر يناير 2020",{"$f":"IF(F57=\"\",\"\",INDEX('دليل الحسابـــــــــــــات '!$B:$B,MATCH($F57,'دليل الحسابـــــــــــــات '!$C:$C,0)))","v":3111},"مصاريف مرتبات ومكافآت  ",null,1666.66,"غيابات"]
[null,10,"2020-01-31","تسوية مرتبات الشركه عن شهر يناير 2020",{"$f":"IF(F58=\"\",\"\",INDEX('دليل الحسابـــــــــــــات '!$B:$B,MATCH($F58,'دليل الحسابـــــــــــــات '!$C:$C,0)))","v":3111},"مصاريف مرتبات ومكافآت  ",null,1503,"خصومات"]
[null,10,"2020-01-31","تسوية مرتبات الشركه عن شهر يناير 2020",{"$f":"IF(F59=\"\",\"\",INDEX('دليل الحسابـــــــــــــات '!$B:$B,MATCH($F59,'دليل الحسابـــــــــــــات '!$C:$C,0)))","v":1331},"سلــــــف موظفين",null,7032.4200000000019]
[null,null,null,null,"الإجمــــــــــــــــــالي",null,{"$f":"SUM(G55:G59)","v":124865},{"$f":"SUM(H55:H59)","v":124865}]
[null,11,"2020-01-31","قيمة تسوية مصاريف بنكيه بنك مصر  جنيه مصري ورد الفرق شهر يناير 2020",{"$f":"IF(F61=\"\",\"\",INDEX('دليل الحسابـــــــــــــات '!$B:$B,MATCH($F61,'دليل الحسابـــــــــــــات '!$C:$C,0)))","v":3161},"مصاريف بنكيه",15.46]
[null,11,"2020-01-31","قيمة تسوية مصاريف بنكيه بنك مصر  جنيه مصري ورد الفرق شهر يناير 2020",{"$f":"IF(F62=\"\",\"\",INDEX('دليل الحسابـــــــــــــات '!$B:$B,MATCH($F62,'دليل الحسابـــــــــــــات '!$C:$C,0)))","v":1237},"بنك مصر ( جنيه مصري )",15.94]
[null,11,"2020-01-31","قيمة تسوية مصاريف بنكيه بنك مصر  جنيه مصري ورد الفرق شهر يناير 2020",{"$f":"IF(F63=\"\",\"\",INDEX('دليل الحسابـــــــــــــات '!$B:$B,MATCH($F63,'دليل الحسابـــــــــــــات '!$C:$C,0)))","v":1237},"بنك مصر ( جنيه مصري )",null,15.46]
[null,11,"2020-01-31","قيمة تسوية مصاريف بنكيه بنك مصر  جنيه مصري ورد الفرق شهر يناير 2020",{"$f":"IF(F64=\"\",\"\",INDEX('دليل الحسابـــــــــــــات '!$B:$B,MATCH($F64,'دليل الحسابـــــــــــــات '!$C:$C,0)))","v":3161},"مصاريف بنكيه",null,15.94]
[null,null,null,null,"الإجمــــــــــــــــــالي",null,{"$f":"SUM(G61:G64)","v":31.4},{"$f":"SUM(H61:H64)","v":31.4}]
[null,12,"2020-01-31","إيداع في الحساب المصري لبنك مصر من حساب عادل نور",{"$f":"IF(F66=\"\",\"\",INDEX('دليل الحسابـــــــــــــات '!$B:$B,MATCH($F66,'دليل الحسابـــــــــــــات '!$C:$C,0)))","v":1237},"بنك مصر ( جنيه مصري )",16500]
[null,12,"2020-01-31","إيداع في الحساب المصري لبنك مصر من حساب عادل نور",{"$f":"IF(F67=\"\",\"\",INDEX('دليل الحسابـــــــــــــات '!$B:$B,MATCH($F67,'دليل الحسابـــــــــــــات '!$C:$C,0)))","v":2632},"جاري شركــــــــاء دائن  عادل نور",null,16500]
[null,null,null,null,"الإجمــــــــــــــــــالي",null,{"$f":"SUM(G66:G67)","v":16500},{"$f":"SUM(H66:H67)","v":16500}]
[null,13,"2020-01-31","تسوية مصاريف المراجعه عن شهر يناير 2020",{"$f":"IF(F69=\"\",\"\",INDEX('دليل الحسابـــــــــــــات '!$B:$B,MATCH($F69,'دليل الحسابـــــــــــــات '!$C:$C,0)))","v":32707},"مصاريف مراجعه عموميه",7500]
[null,13,"2020-01-31","تسوية مصاريف المراجعه عن شهر يناير 2020",{"$f":"IF(F70=\"\",\"\",INDEX('دليل الحسابـــــــــــــات '!$B:$B,MATCH($F70,'دليل الحسابـــــــــــــات '!$C:$C,0)))","v":2517},"موردين تشغيل",null,7500]
[null,null,null,null,"الإجمــــــــــــــــــالي",null,{"$f":"SUM(G69:G70)","v":7500},{"$f":"SUM(H69:H70)","v":7500}]
[null,14,"2020-01-31","قيمة تسوية مصاريف بنكيه بنك مصر  ربال سعودي شهر يناير 2020",{"$f":"IF(F72=\"\",\"\",INDEX('دليل الحسابـــــــــــــات '!$B:$B,MATCH($F72,'دليل الحسابـــــــــــــات '!$C:$C,0)))","v":3161},"مصاريف بنكيه",{"$f":"J72*4","v":105.24},null,null,26.31]
[null,14,"2020-01-31","قيمة تسوية مصاريف بنكيه بنك مصر  ربال سعودي شهر يناير 2020",{"$f":"IF(F73=\"\",\"\",INDEX('دليل الحسابـــــــــــــات '!$B:$B,MATCH($F73,'دليل الحسابـــــــــــــات '!$C:$C,0)))","v":1236},"بنك مصر ( ريال سعودي)",null,{"$f":"J73*4","v":105.24},null,26.31]
[null,null,null,null,"الإجمــــــــــــــــــالي",null,{"$f":"SUM(G72:G73)","v":105.24},{"$f":"SUM(H72:H73)","v":105.24}]

{"sheet":"يومية التسويات فبراير 2020","index":2,"n_rows":74,"n_cols":10,"rows_kept":74,"cut":false,"hidden":false,"merged":[[1,4,1,5],[2,1,2,5],[21,4,21,5],[21,8,21,9],[26,4,26,5],[26,8,26,9],[29,4,29,5],[29,8,29,9],[34,4,34,5],[34,8,34,9],[39,4,39,5],[39,8,39,9],[43,4,43,5],[43,8,43,9],[47,4,47,5],[47,8,47,9],[50,4,50,5],[50,8,50,9],[53,4,53,5],[53,8,53,9],[59,4,59,5],[59,8,59,9],[64,4,64,5],[64,8,64,9],[67,4,67,5],[67,8,67,9],[70,4,70,5],[70,8,70,9],[73,4,73,5],[73,8,73,9]]}
[]
[]
[null,"يومية التسويات عن شهر    ",null,null,null,null,"  فبراير 2020"]
[]
[null,"رقم القيد","التاريخ","عنوان القيد ","رقـــــم الحساب"," إسم  الحســـــــــــاب","مدين","دائن","بيــــــــان","ملاحظـــــــــــات"]
[null,null,"Date",null,"Codes","Account","Debit.","Credit.","Explanation","Notes"]
[null,1,"2020-01-01","قيمة مصاريف الخزينه عن شهر يناير 2020",{"$f":"IF(F7=\"\",\"\",INDEX('دليل الحسابـــــــــــــات '!$B:$B,MATCH($F7,'دليل الحسابـــــــــــــات '!$C:$C,0)))","v":32705},"مصاريف صيانه عموميه",765]
[null,1,"2020-01-01","قيمة مصاريف الخزينه عن شهر يناير 2020",{"$f":"IF(F8=\"\",\"\",INDEX('دليل الحسابـــــــــــــات '!$B:$B,MATCH($F8,'دليل الحسابـــــــــــــات '!$C:$C,0)))","v":32703},"مصاريف مكتب أخرى عموميه",187]
[null,1,"2020-01-01","قيمة مصاريف الخزينه عن شهر يناير 2020",{"$f":"IF(F9=\"\",\"\",INDEX('دليل الحسابـــــــــــــات '!$B:$B,MATCH($F9,'دليل الحسابـــــــــــــات '!$C:$C,0)))","v":32709},"مصاريف نظافه",800]
[null,1,"2020-01-01","قيمة مصاريف الخزينه عن شهر يناير 2020",{"$f":"IF(F10=\"\",\"\",INDEX('دليل الحسابـــــــــــــات '!$B:$B,MATCH($F10,'دليل الحسابـــــــــــــات '!$C:$C,0)))","v":3251},"مصاريف بوفيه",676]
[null,1,"2020-01-01","قيمة مصاريف الخزينه عن شهر يناير 2020",{"$f":"IF(F11=\"\",\"\",INDEX('دليل الحسابـــــــــــــات '!$B:$B,MATCH($F11,'دليل الحسابـــــــــــــات '!$C:$C,0)))","v":3128},"مصاريف كمبيوتر وشبكات ",888]
[null,1,"2020-01-01","قيمة مصاريف الخزينه عن شهر يناير 2020",{"$f":"IF(F12=\"\",\"\",INDEX('دليل الحسابـــــــــــــات '!$B:$B,MATCH($F12,'دليل الحسابـــــــــــــات '!$C:$C,0)))","v":32706},"إكراميات عموميه",1000,null,"قيمة الإكراميه الشهريه لموظفي أمن العماره"]
[null,1,"2020-01-01","قيمة مصاريف الخزينه عن شهر يناير 2020",{"$f":"IF(F13=\"\",\"\",INDEX('دليل الحسابـــــــــــــات '!$B:$B,MATCH($F13,'دليل الحسابـــــــــــــات '!$C:$C,0)))","v":2641},"مرتبات مستحقه",71687]
[null,1,"2020-01-01","قيمة مصاريف الخزينه عن شهر يناير 2020",{"$f":"IF(F14=\"\",\"\",INDEX('دليل الحسابـــــــــــــات '!$B:$B,MATCH($F14,'دليل الحسابـــــــــــــات '!$C:$C,0)))","v":3182},"مصاريف مطبوعات ",3000,null,"قيمة مطبوعات مستندات الشركه"]
[null,1,"2020-01-01","قيمة مصاريف الخزينه عن شهر يناير 2020",{"$f":"IF(F15=\"\",\"\",INDEX('دليل الحسابـــــــــــــات '!$B:$B,MATCH($F15,'دليل الحسابـــــــــــــات '!$C:$C,0)))","v":1331},"سلــــــف موظفين",4300,null,"نذير إسحاق700 +900سلفة جانيت أحمد"]
[null,1,"2020-01-01","قيمة مصاريف الخزينه عن شهر يناير 2020",{"$f":"IF(F16=\"\",\"\",INDEX('دليل الحسابـــــــــــــات '!$B:$B,MATCH($F16,'دليل الحسابـــــــــــــات '!$C:$C,0)))","v":3232},"مصاريف كهرباء عموميه",876,null,"فاتورة كهرباء شهر يناير ( ديسمبر)"]
[null,1,"2020-01-01","قيمة مصاريف الخزينه عن شهر يناير 2020",{"$f":"IF(F17=\"\",\"\",INDEX('دليل الحسابـــــــــــــات '!$B:$B,MATCH($F17,'دليل الحسابـــــــــــــات '!$C:$C,0)))","v":3262},"مصاريف إنتقالات موظفين عموميه",100,null,"مصاريف إنتقال من مول الكمبيوتر للشركه"]
[null,1,"2020-01-01","قيمة مصاريف الخزينه عن شهر يناير 2020",{"$f":"IF(F18=\"\",\"\",INDEX('دليل الحسابـــــــــــــات '!$B:$B,MATCH($F18,'دليل الحسابـــــــــــــات '!$C:$C,0)))","v":32704},"مصاريف أدوات كتابيه عموميه",199,null,"شراء 2روزمة ورق تصوير"]
[null,1,"2020-01-01","قيمة مصاريف الخزينه عن شهر يناير 2020",{"$f":"IF(F19=\"\",\"\",INDEX('دليل الحسابـــــــــــــات '!$B:$B,MATCH($F19,'دليل الحسابـــــــــــــات '!$C:$C,0)))","v":3241},"مصاريف إيجار",8750,null,"إيجار الشركه عن شهر يناير 2020"]
[null,1,"2020-01-01","قيمة مصاريف الخزينه عن شهر يناير 2020",{"$f":"IF(F20=\"\",\"\",INDEX('دليل الحسابـــــــــــــات '!$B:$B,MATCH($F20,'دليل الحسابـــــــــــــات '!$C:$C,0)))","v":32713},"مصاريف رسوم إداريه",100,null,"إشتراك الغزفه التجاريه 2020"]
[null,1,"2020-01-01","قيمة مصاريف الخزينه عن شهر يناير 2020",{"$f":"IF(F21=\"\",\"\",INDEX('دليل الحسابـــــــــــــات '!$B:$B,MATCH($F21,'دليل الحسابـــــــــــــات '!$C:$C,0)))","v":1211},"خزينة الشركه - جنيه مصري",null,93328]
[null,null,null,null,"الإجمــــــــــــــــــالي",null,{"$f":"SUM(G7:G21)","v":93328},{"$f":"SUM(H7:H21)","v":93328}]
[null,2,"2020-01-31","تسوية سداد مستحقات أحمد الرويس وأمينه خالد من الحساب الشخصي ليوسف الدخيل",{"$f":"IF(F23=\"\",\"\",INDEX('دليل الحسابـــــــــــــات '!$B:$B,MATCH($F23,'دليل الحسابـــــــــــــات '!$C:$C,0)))","v":2641},"مرتبات مستحقه",11000]
[null,2,"2020-01-31","تسوية سداد مستحقات أحمد الرويس وأمينه خالد من الحساب الشخصي ليوسف الدخيل",{"$f":"IF(F24=\"\",\"\",INDEX('دليل الحسابـــــــــــــات '!$B:$B,MATCH($F24,'دليل الحسابـــــــــــــات '!$C:$C,0)))","v":2641},"مرتبات مستحقه",800]
[null,2,"2020-01-31","تسوية سداد مستحقات أحمد الرويس وأمينه خالد من الحساب الشخصي ليوسف الدخيل",{"$f":"IF(F25=\"\",\"\",INDEX('دليل الحسابـــــــــــــات '!$B:$B,MATCH($F25,'دليل الحسابـــــــــــــات '!$C:$C,0)))","v":2641},"مرتبات مستحقه",1000]
[null,2,"2020-01-31","تسوية سداد مستحقات أحمد الرويس وأمينه خالد من الحساب الشخصي ليوسف الدخيل",{"$f":"IF(F26=\"\",\"\",INDEX('دليل الحسابـــــــــــــات '!$B:$B,MATCH($F26,'دليل الحسابـــــــــــــات '!$C:$C,0)))","v":2631},"جاري شركــــــــاء دائن  يوسف الدخيل",null,12800]
[null,null,null,null,"الإجمــــــــــــــــــالي",null,{"$f":"SUM(G23:G26)","v":12800},{"$f":"SUM(H23:H26)","v":12800}]
[null,3,"2020-01-03","إيراد حجز العميل 1 في فندق رمادا ميلان فايل 1",{"$f":"IF(F28=\"\",\"\",INDEX('دليل الحسابـــــــــــــات '!$B:$B,MATCH($F28,'دليل الحسابـــــــــــــات '!$C:$C,0)))","v":1311},"عملاء الشركه",16000,null,null,1000]
[null,3,"2020-01-03","إيراد حجز العميل 1 في فندق رمادا ميلان فايل 1",{"$f":"IF(F29=\"\",\"\",INDEX('دليل الحسابـــــــــــــات '!$B:$B,MATCH($F29,'دليل الحسابـــــــــــــات '!$C:$C,0)))","v":4211},"إيرادات حجز فنادق عملاء مدفوعه",null,16000,null,1000]
[null,null,null,null,"الإجمــــــــــــــــــالي",null,{"$f":"SUM(G28:G29)","v":16000},{"$f":"SUM(H28:H29)","v":16000}]
[null,4,"2020-01-03","مصروف حجز العميل 1 في فندق رمادا ميلان فايل 1",{"$f":"IF(F31=\"\",\"\",INDEX('دليل الحسابـــــــــــــات '!$B:$B,MATCH($F31,'دليل الحسابـــــــــــــات '!$C:$C,0)))","v":3131},"مصاريف حجز فنادق عملاء مدفوعه",{"$f":"2655*16","v":42480},null,null,2655]
[null,4,"2020-01-03","مصروف حجز العميل 1 في فندق رمادا ميلان فايل 1",{"$f":"IF(F32=\"\",\"\",INDEX('دليل الحسابـــــــــــــات '!$B:$B,MATCH($F32,'دليل الحسابـــــــــــــات '!$C:$C,0)))","v":3132},"مصاريف حجز طيران عملاء مدفوعه",{"$f":"117.2*16","v":1875.2},null,null,117.2]
[null,4,"2020-01-03","مصروف حجز العميل 1 في فندق رمادا ميلان فايل 1",{"$f":"IF(F33=\"\",\"\",INDEX('دليل الحسابـــــــــــــات '!$B:$B,MATCH($F33,'دليل الحسابـــــــــــــات '!$C:$C,0)))","v":2512},"موردين شركات سياحه",null,{"$f":"2655*16","v":42480},null,2655]
[null,4,"2020-01-03","مصروف حجز العميل 1 في فندق رمادا ميلان فايل 1",{"$f":"IF(F34=\"\",\"\",INDEX('دليل الحسابـــــــــــــات '!$B:$B,MATCH($F34,'دليل الحسابـــــــــــــات '!$C:$C,0)))","v":2631},"جاري شركــــــــاء دائن  يوسف الدخيل",null,{"$f":"117.2*16","v":1875.2},null,117.2]
[null,null,null,null,"الإجمــــــــــــــــــالي",null,{"$f":"SUM(G31:G34)","v":44355.199999999997},{"$f":"SUM(H31:H34)","v":44355.199999999997}]
[null,5,"2020-01-06","إيراد حجز العميل 2 في فندق راديسون بلو الكويت فايل 2",{"$f":"IF(F36=\"\",\"\",INDEX('دليل الحسابـــــــــــــات '!$B:$B,MATCH($F36,'دليل الحسابـــــــــــــات '!$C:$C,0)))","v":1235},"بنك مصر ( دولار)",{"$f":"251.16*16","v":4018.56},null,null,"257/251.16"]
[null,5,"2020-01-06","إيراد حجز العميل 2 في فندق راديسون بلو الكويت فايل 2",{"$f":"IF(F37=\"\",\"\",INDEX('دليل الحسابـــــــــــــات '!$B:$B,MATCH($F37,'دليل الحسابـــــــــــــات '!$C:$C,0)))","v":1311},"عملاء الشركه",null,{"$f":"251.16*16","v":4018.56},null,"257/251.16"]
[null,5,"2020-01-06","إيراد حجز العميل 2 في فندق راديسون بلو الكويت فايل 2",{"$f":"IF(F38=\"\",\"\",INDEX('دليل الحسابـــــــــــــات '!$B:$B,MATCH($F38,'دليل الحسابـــــــــــــات '!$C:$C,0)))","v":1311},"عملاء الشركه",{"$f":"251.16*16","v":4018.56},null,null,"257/251.16"]
[null,5,"2020-01-06","إيراد حجز العميل 2 في فندق راديسون بلو الكويت فايل 2",{"$f":"IF(F39=\"\",\"\",INDEX('دليل الحسابـــــــــــــات '!$B:$B,MATCH($F39,'دليل الحسابـــــــــــــات '!$C:$C,0)))","v":4211},"إيرادات حجز فنادق عملاء مدفوعه",null,{"$f":"251.16*16","v":4018.56},null,"257/251.16"]
[null,null,null,null,"الإجمــــــــــــــــــالي",null,{"$f":"SUM(G36:G39)","v":8037.12},{"$f":"SUM(H36:H39)","v":8037.12}]
[null,6,"2020-01-09","سداد جزء من تحت حساب مديونية شركة المسافر",{"$f":"IF(F41=\"\",\"\",INDEX('دليل الحسابـــــــــــــات '!$B:$B,MATCH($F41,'دليل الحسابـــــــــــــات '!$C:$C,0)))","v":2512},"موردين شركات سياحه",{"$f":"2000*16","v":32000},null,"شركة المسافر",2000]
[null,6,"2020-01-09","سداد جزء من تحت حساب مديونية شركة المسافر",{"$f":"IF(F42=\"\",\"\",INDEX('دليل الحسابـــــــــــــات '!$B:$B,MATCH($F42,'دليل الحسابـــــــــــــات '!$C:$C,0)))","v":2512},"موردين شركات سياحه",{"$f":"2340*16","v":37440},null,"شركة المسافر",2340]
[null,6,"2020-01-09","سداد جزء من تحت حساب مديونية شركة المسافر",{"$f":"IF(F43=\"\",\"\",INDEX('دليل الحسابـــــــــــــات '!$B:$B,MATCH($F43,'دليل الحسابـــــــــــــات '!$C:$C,0)))","v":2632},"جاري شركــــــــاء دائن  عادل نور",null,69440,"شركة المسافر",4340]
[null,null,null,null,"الإجمــــــــــــــــــالي",null,{"$f":"SUM(G41:G43)","v":69440},{"$f":"SUM(H41:H43)","v":69440}]
[null,7,"2020-01-06","قيمة شحن مكالمات خلال شهر يناير 2020",{"$f":"IF(F45=\"\",\"\",INDEX('دليل الحسابـــــــــــــات '!$B:$B,MATCH($F45,'دليل الحسابـــــــــــــات '!$C:$C,0)))","v":3122},"مصاريف مكالمات موبايلات",{"$f":"900*4.25","v":3825}]
[null,7,"2020-01-06","قيمة شحن مكالمات خلال شهر يناير 2020",{"$f":"IF(F46=\"\",\"\",INDEX('دليل الحسابـــــــــــــات '!$B:$B,MATCH($F46,'دليل الحسابـــــــــــــات '!$C:$C,0)))","v":3128},"مصاريف كمبيوتر وشبكات ",{"$f":"200*16","v":3200}]
[null,7,"2020-01-06","قيمة شحن مكالمات خلال شهر يناير 2020",{"$f":"IF(F47=\"\",\"\",INDEX('دليل الحسابـــــــــــــات '!$B:$B,MATCH($F47,'دليل الحسابـــــــــــــات '!$C:$C,0)))","v":2517},"موردين تشغيل",null,{"$f":"7025","v":7025}]
[null,null,null,null,"الإجمــــــــــــــــــالي",null,{"$f":"SUM(G45:G47)","v":7025},{"$f":"SUM(H45:H47)","v":7025}]
[null,8,"2020-01-15","سداد دفعه من حساب شحن مكالمات للمورد",{"$f":"IF(F49=\"\",\"\",INDEX('دليل الحسابـــــــــــــات '!$B:$B,MATCH($F49,'دليل الحسابـــــــــــــات '!$C:$C,0)))","v":2517},"موردين تشغيل",{"$f":"900*16","v":14400}]
[null,8,"2020-01-15","سداد دفعه من حساب شحن مكالمات للمورد",{"$f":"IF(F50=\"\",\"\",INDEX('دليل الحسابـــــــــــــات '!$B:$B,MATCH($F50,'دليل الحسابـــــــــــــات '!$C:$C,0)))","v":2632},"جاري شركــــــــاء دائن  عادل نور",null,{"$f":"900*16","v":14400}]
[null,null,null,null,"الإجمــــــــــــــــــالي",null,{"$f":"SUM(G49:G50)","v":14400},{"$f":"SUM(H49:H50)","v":14400}]
[null,9,"2020-01-22","قيمة شحن مكالمات خلال شهر يناير 2020",{"$f":"IF(F52=\"\",\"\",INDEX('دليل الحسابـــــــــــــات '!$B:$B,MATCH($F52,'دليل الحسابـــــــــــــات '!$C:$C,0)))","v":2645},"فواتير تليفونات مستحقه",{"$f":"2400*4.25","v":10200}]
[null,9,"2020-01-22","قيمة شحن مكالمات خلال شهر يناير 2020",{"$f":"IF(F53=\"\",\"\",INDEX('دليل الحسابـــــــــــــات '!$B:$B,MATCH($F53,'دليل الحسابـــــــــــــات '!$C:$C,0)))","v":2632},"جاري شركــــــــاء دائن  عادل نور",null,{"$f":"2400*4.25","v":10200}]
[null,null,null,null,"الإجمــــــــــــــــــالي",null,{"$f":"SUM(G52:G53)","v":10200},{"$f":"SUM(H52:H53)","v":10200}]
[null,10,"2020-01-31","تسوية مرتبات الشركه عن شهر يناير 2020",{"$f":"IF(F55=\"\",\"\",INDEX('دليل الحسابـــــــــــــات '!$B:$B,MATCH($F55,'دليل الحسابـــــــــــــات '!$C:$C,0)))","v":3111},"مصاريف مرتبات ومكافآت  ",124865]
[null,10,"2020-01-31","تسوية مرتبات الشركه عن شهر يناير 2020",{"$f":"IF(F56=\"\",\"\",INDEX('دليل الحسابـــــــــــــات '!$B:$B,MATCH($F56,'دليل الحسابـــــــــــــات '!$C:$C,0)))","v":2641},"مرتبات مستحقه",null,114662.92]
[null,10,"2020-01-31","تسوية مرتبات الشركه عن شهر يناير 2020",{"$f":"IF(F57=\"\",\"\",INDEX('دليل الحسابـــــــــــــات '!$B:$B,MATCH($F57,'دليل الحسابـــــــــــــات '!$C:$C,0)))","v":3111},"مصاريف مرتبات ومكافآت  ",null,1666.66,"غيابات"]
[null,10,"2020-01-31","تسوية مرتبات الشركه عن شهر يناير 2020",{"$f":"IF(F58=\"\",\"\",INDEX('دليل الحسابـــــــــــــات '!$B:$B,MATCH($F58,'دليل الحسابـــــــــــــات '!$C:$C,0)))","v":3111},"مصاريف مرتبات ومكافآت  ",null,1503,"خصومات"]
[null,10,"2020-01-31","تسوية مرتبات الشركه عن شهر يناير 2020",{"$f":"IF(F59=\"\",\"\",INDEX('دليل الحسابـــــــــــــات '!$B:$B,MATCH($F59,'دليل الحسابـــــــــــــات '!$C:$C,0)))","v":1331},"سلــــــف موظفين",null,7032.4200000000019]
[null,null,null,null,"الإجمــــــــــــــــــالي",null,{"$f":"SUM(G55:G59)","v":124865},{"$f":"SUM(H55:H59)","v":124865}]
[null,11,"2020-01-31","قيمة تسوية مصاريف بنكيه بنك مصر  جنيه مصري ورد الفرق شهر يناير 2020",{"$f":"IF(F61=\"\",\"\",INDEX('دليل الحسابـــــــــــــات '!$B:$B,MATCH($F61,'دليل الحسابـــــــــــــات '!$C:$C,0)))","v":3161},"مصاريف بنكيه",15.46]
[null,11,"2020-01-31","قيمة تسوية مصاريف بنكيه بنك مصر  جنيه مصري ورد الفرق شهر يناير 2020",{"$f":"IF(F62=\"\",\"\",INDEX('دليل الحسابـــــــــــــات '!$B:$B,MATCH($F62,'دليل الحسابـــــــــــــات '!$C:$C,0)))","v":1237},"بنك مصر ( جنيه مصري )",15.94]
[null,11,"2020-01-31","قيمة تسوية مصاريف بنكيه بنك مصر  جنيه مصري ورد الفرق شهر يناير 2020",{"$f":"IF(F63=\"\",\"\",INDEX('دليل الحسابـــــــــــــات '!$B:$B,MATCH($F63,'دليل الحسابـــــــــــــات '!$C:$C,0)))","v":1237},"بنك مصر ( جنيه مصري )",null,15.46]
[null,11,"2020-01-31","قيمة تسوية مصاريف بنكيه بنك مصر  جنيه مصري ورد الفرق شهر يناير 2020",{"$f":"IF(F64=\"\",\"\",INDEX('دليل الحسابـــــــــــــات '!$B:$B,MATCH($F64,'دليل الحسابـــــــــــــات '!$C:$C,0)))","v":3161},"مصاريف بنكيه",null,15.94]
[null,null,null,null,"الإجمــــــــــــــــــالي",null,{"$f":"SUM(G61:G64)","v":31.4},{"$f":"SUM(H61:H64)","v":31.4}]
[null,12,"2020-01-31","إيداع في الحساب المصري لبنك مصر من حساب عادل نور",{"$f":"IF(F66=\"\",\"\",INDEX('دليل الحسابـــــــــــــات '!$B:$B,MATCH($F66,'دليل الحسابـــــــــــــات '!$C:$C,0)))","v":1237},"بنك مصر ( جنيه مصري )",16500]
[null,12,"2020-01-31","إيداع في الحساب المصري لبنك مصر من حساب عادل نور",{"$f":"IF(F67=\"\",\"\",INDEX('دليل الحسابـــــــــــــات '!$B:$B,MATCH($F67,'دليل الحسابـــــــــــــات '!$C:$C,0)))","v":2632},"جاري شركــــــــاء دائن  عادل نور",null,16500]
[null,null,null,null,"الإجمــــــــــــــــــالي",null,{"$f":"SUM(G66:G67)","v":16500},{"$f":"SUM(H66:H67)","v":16500}]
[null,13,"2020-01-31","تسوية مصاريف المراجعه عن شهر يناير 2020",{"$f":"IF(F69=\"\",\"\",INDEX('دليل الحسابـــــــــــــات '!$B:$B,MATCH($F69,'دليل الحسابـــــــــــــات '!$C:$C,0)))","v":32707},"مصاريف مراجعه عموميه",7500]
[null,13,"2020-01-31","تسوية مصاريف المراجعه عن شهر يناير 2020",{"$f":"IF(F70=\"\",\"\",INDEX('دليل الحسابـــــــــــــات '!$B:$B,MATCH($F70,'دليل الحسابـــــــــــــات '!$C:$C,0)))","v":2517},"موردين تشغيل",null,7500]
[null,null,null,null,"الإجمــــــــــــــــــالي",null,{"$f":"SUM(G69:G70)","v":7500},{"$f":"SUM(H69:H70)","v":7500}]
[null,14,"2020-01-31","قيمة تسوية مصاريف بنكيه بنك مصر  ربال سعودي شهر يناير 2020",{"$f":"IF(F72=\"\",\"\",INDEX('دليل الحسابـــــــــــــات '!$B:$B,MATCH($F72,'دليل الحسابـــــــــــــات '!$C:$C,0)))","v":3161},"مصاريف بنكيه",{"$f":"J72*4","v":105.24},null,null,26.31]
[null,14,"2020-01-31","قيمة تسوية مصاريف بنكيه بنك مصر  ربال سعودي شهر يناير 2020",{"$f":"IF(F73=\"\",\"\",INDEX('دليل الحسابـــــــــــــات '!$B:$B,MATCH($F73,'دليل الحسابـــــــــــــات '!$C:$C,0)))","v":1236},"بنك مصر ( ريال سعودي)",null,{"$f":"J73*4","v":105.24},null,26.31]
[null,null,null,null,"الإجمــــــــــــــــــالي",null,{"$f":"SUM(G72:G73)","v":105.24},{"$f":"SUM(H72:H73)","v":105.24}]

{"sheet":"كشف الحساب","index":3,"n_rows":6,"n_cols":8,"rows_kept":6,"cut":false,"hidden":false,"merged":[]}
[]
[]
[]
[null,null,null,null,null,{"$f":"IF(G4=\"\",\"\",INDEX('دليل الحسابـــــــــــــات '!$B:$B,MATCH($G4,'دليل الحسابـــــــــــــات '!$C:$C,0)))","v":1131},"تكييفات ومراوح","المطلوب عند كتابة إسم الحساب تنزل البيانات المكتوبه باللون الأخضر لكل شهر "]
[]
[null,"رقم التسويه","تاريخ التسويه","بيان التسويه","مدين","دائن","بيان ","ملاحظات"]